bitfinex-derivatives/quotes_ETHF0:USTF0_20250505
["timestamp","ask_amount","ask_price","bid_price","bid_amount"]
[1746436909452,1.5218801,1827.2,1827.1,4.36694]
[1746436911159,1.51430799,1827.2,1827.1,4.36694]
[1746436911344,0.41979799,1827.2,1827.1,4.36694]
[1746436913158,0.41979799,1827.2,1827.1,10.26494]
[1746436913957,3.58183,1827.4,1827.3,1.09445]
[1746436914156,4.00119334,1827.4,1827.3,4.82645]
[1746436914455,4.00119334,1827.4,1827.3,7.31855]
[1746436916256,4.00093643,1827.4,1827.3,7.31855]
[1746436916956,4.00093643,1827.4,1827.3,10.52635]
[1746436917345,4.00093643,1827.4,1827.3,7.31855]
[1746436917550,4.00093643,1827.4,1827.3,4.82645]
[1746436918055,4.00115464,1827.4,1827.3,4.82645]
[1746436920456,4.00115464,1827.4,1827.3,8.03425]
[1746436920858,4.00115464,1827.4,1827.3,9.60575]
[1746436921360,4.0009464,1827.4,1827.3,9.60575]
[1746436923759,4.0009464,1827.4,1827.3,16.91607578]
[1746436924262,4.00065655,1827.4,1827.3,16.91607578]
[1746436925956,4.00061353,1827.4,1827.3,16.91607578]
[1746436927662,4.00058701,1827.4,1827.3,16.91607578]
[1746436928362,4.00058701,1827.4,1827.3,13.70827578]
[1746436928565,4.00058701,1827.4,1827.3,16.91607578]
[1746436929469,4.00047317,1827.4,1827.3,16.91607578]
[1746436930866,4.00043647,1827.4,1827.3,16.91607578]
[1746436931167,4.00035339,1827.4,1827.3,16.91607578]
[1746436932869,4.00034854,1827.4,1827.3,16.91607578]
[1746436934573,4.00038716,1827.4,1827.3,16.91607578]
[1746436936375,4.00053222,1827.4,1827.3,16.91607578]
[1746436937577,4.00053222,1827.4,1827.3,14.25012578]
[1746436937967,4.00058476,1827.4,1827.3,14.25012578]
[1746436938167,4.00058476,1827.4,1827.3,11.61257578]
[1746436939674,4.00127932,1827.4,1827.3,11.61257578]
[1746436939979,4.00127932,1827.4,1827.3,10.51812578]
[1746436940579,4.00127932,1827.4,1827.3,3.2078]
[1746436942678,4.00127932,1827.4,1827.3,4.30225]
[1746436943179,4.00160039,1827.4,1827.3,4.30225]
[1746436943977,4.00160039,1827.4,1827.3,5.96955]
[1746436945081,4.00160039,1827.4,1827.3,4.8751]
[1746436946683,4.00160039,1827.4,1827.3,1.6673]
[1746436948383,4.00178037,1827.4,1827.3,1.6673]
[1746436948987,4.00178037,1827.4,1827.3,2.76175]
[1746436949284,4.00178037,1827.4,1827.3,5.3993]
[1746436949983,4.00173799,1827.4,1827.3,5.3993]
[1746436950185,4.00173799,1827.4,1827.3,1.6673]
[1746436951281,4.00173799,1827.4,1827.3,2.76175]
[1746436951481,4.00173799,1827.4,1827.3,1.6673]
[1746436951680,4.00172724,1827.4,1827.3,1.6673]
[1746436951885,4.00172724,1827.4,1827.3,2.76175]
[1746436952078,1.51432724,1827.4,1827.3,6.49375]
[1746436952683,0.41989724,1827.4,1827.3,6.49375]
[1746436953484,1.09436,1827.5,1827.4,1.09439]
[1746436953688,1.51462712,1827.5,1827.4,7.54749]
[1746436954088,1.51462712,1827.5,1827.4,11.27949]
[1746436954488,0.42026712,1827.5,1827.4,11.27949]
[1746436955690,1.51459712,1827.5,1827.4,11.27949]
[1746436956485,0.42028386,1827.5,1827.4,11.27949]
[1746436956789,1.09432,1827.6,1827.5,1.09433]
[1746436956989,1.5146451,1827.6,1827.5,2.75693]
[1746436957287,1.5146451,1827.6,1827.5,6.48893]
[1746436958494,0.42026463,1827.6,1827.5,6.48893]
[1746436958684,3.487,1828.0,1827.8,1.0941]
[1746436958990,1.09411,1827.9,1827.8,1.0941]
[1746436959182,2.67991,1827.9,1827.8,1.0941]
[1746436959890,2.67991,1827.9,1827.8,3.5891]
[1746436960384,1.5858,1827.9,1827.8,3.5891]
[1746436960793,2.72239,1828.0,1827.9,1.09409]
[1746436960995,2.72239,1828.0,1827.9,2.66729]
[1746436961188,1.92319,1828.0,1827.9,2.66729]
[1746436962388,1.09409,1828.0,1827.9,2.66729]
[1746436967096,2.79989,1828.0,1827.9,2.66729]
[1746436967396,2.79989,1828.0,1827.9,1.09409]
[1746436967596,1.09409,1827.9,1827.8,4.30191]
[1746436967994,1.09409,1827.9,1827.8,5.90851]
[1746436968189,1.09409,1827.9,1827.8,9.64051]
[1746436968390,2.79989,1827.9,1827.8,9.64051]
[1746436968998,2.79989,1827.9,1827.8,10.45041]
[1746436970297,1.09409,1827.9,1827.8,10.45041]
[1746436973903,2.68079,1827.9,1827.8,10.45041]
[1746436974200,2.68079,1827.9,1827.8,6.71841]
[1746436975201,1.09409,1827.9,1827.8,10.45041]
[1746436976503,1.09405,1828.0,1827.9,1.09409]
[1746436976802,1.09405,1828.0,1827.9,3.55289]
[1746436977194,1.09405,1828.0,1827.9,7.28489]
[1746436977704,1.50605069,1828.0,1827.9,7.28489]
[1746436977895,3.06065069,1828.0,1827.9,7.28489]
[1746436980702,3.06128351,1828.0,1827.9,7.28489]
[1746436982898,3.06126351,1828.0,1827.9,10.49269]
[1746436985110,1.09409,1827.9,1827.8,6.99214]
[1746436985409,3.95442351,1827.9,1827.8,6.99214]
[1746436985606,3.14182351,1827.9,1827.8,6.99214]
[1746436985799,3.14182351,1827.9,1827.8,8.57114]
[1746436986200,2.04773351,1827.9,1827.8,12.30314]
[1746436986402,3.14182351,1827.9,1827.8,9.61294]
[1746436987507,2.04773351,1827.9,1827.8,9.61294]
[1746436988607,2.04885918,1827.9,1827.8,9.61294]
[1746436988806,3.14294918,1827.9,1827.8,9.61294]
[1746436989410,1.50784918,1827.9,1827.8,9.61294]
[1746436989706,0.41375918,1827.9,1827.8,9.61294]
[1746436990408,1.09406,1828.0,1827.9,1.09409]
[1746436990704,1.50784248,1828.0,1827.9,3.54719]
[1746436990908,3.20714248,1828.0,1827.9,3.54719]
[1746436991106,4.01584376,1828.0,1827.9,3.54719]
[1746436991308,4.01584376,1828.0,1827.9,7.27919]
[1746436992102,3.60216,1828.0,1827.9,3.54719]
[1746436992302,4.01597313,1828.0,1827.9,3.54719]
[1746436993906,2.11311313,1828.0,1827.9,3.54719]
[1746436994100,0.41381313,1828.0,1827.9,7.27919]
[1746436994300,0.41381313,1828.0,1827.9,8.10859]
[1746436995608,1.93439,1828.1,1828.0,1.09403]
[1746436995810,4.04064785,1828.1,1828.0,5.85823]
[1746436996208,4.04064785,1828.1,1828.0,9.59023]
[1746436997316,4.04044624,1828.1,1828.0,9.59023]
[1746437001111,4.04044624,1828.1,1828.0,6.38243]
[1746437001410,4.04044624,1828.1,1828.0,3.732]
[1746437002111,1.09403,1828.0,1827.9,8.41215604]
[1746437002312,3.07128624,1828.0,1827.9,8.41215604]
[1746437002513,3.07143796,1828.0,1827.9,8.41215604]
[1746437003307,3.07143796,1828.0,1827.9,10.80585604]
[1746437004413,3.07143796,1828.0,1827.9,3.48775]
[1746437005817,3.07132919,1828.0,1827.9,3.48775]
[1746437007116,3.07132919,1828.0,1827.9,7.21975]
[1746437007316,3.07132919,1828.0,1827.9,14.53785604]
[1746437007617,3.07130124,1828.0,1827.9,14.53785604]
[1746437008118,3.07130124,1828.0,1827.9,10.80585604]
[1746437009318,3.07133687,1828.0,1827.9,10.80585604]
[1746437011016,3.07148142,1828.0,1827.9,10.80585604]
[1746437011206,3.07148142,1828.0,1827.9,14.53785604]
[1746437013219,3.07148142,1828.0,1827.9,10.80585604]
[1746437014018,3.07148142,1828.0,1827.9,19.98798872]
[1746437014317,3.07148142,1828.0,1827.9,23.71998872]
[1746437014519,3.0714725,1828.0,1827.9,23.71998872]
[1746437016116,3.07147575,1828.0,1827.9,23.71998872]
[1746437017821,3.07150224,1828.0,1827.9,23.71998872]
[1746437018323,3.07150224,1828.0,1827.9,19.98798872]
[1746437019318,3.07150224,1828.0,1827.9,23.19578872]
[1746437019519,3.07149724,1828.0,1827.9,23.19578872]
[1746437020121,3.07149724,1828.0,1827.9,26.92778872]
[1746437020322,3.07149724,1828.0,1827.9,23.71998872]
[1746437020525,3.07149724,1828.0,1827.9,26.92778872]
[1746437020918,3.07149724,1828.0,1827.9,23.71998872]
[1746437021119,3.07149724,1828.0,1827.9,26.92778872]
[1746437021423,3.07165983,1828.0,1827.9,26.92778872]
[1746437022817,0.41362983,1828.0,1827.9,26.92778872]
[1746437023219,3.09205983,1828.0,1827.9,26.92778872]
[1746437024215,3.09205983,1828.0,1827.9,23.19578872]
[1746437024727,3.09205074,1828.0,1827.9,23.19578872]
[1746437025126,3.09205074,1828.0,1827.9,26.92778872]
[1746437026426,3.09206753,1828.0,1827.9,26.92778872]
[1746437026627,3.09206753,1828.0,1827.9,24.25403872]
[1746437027220,3.09206753,1828.0,1827.9,20.52203872]
[1746437027429,3.92756753,1828.0,1827.9,19.70803872]
[1746437027633,4.78726753,1828.0,1827.9,19.70803872]
[1746437027927,4.78739493,1828.0,1827.9,19.70803872]
[1746437028231,4.78740868,1828.0,1827.9,20.80212872]
[1746437028431,4.78740868,1828.0,1827.9,22.42492872]
[1746437028729,4.78740868,1828.0,1827.9,23.25802872]
[1746437029326,4.78740868,1828.0,1827.9,14.07589604]
[1746437030931,3.92770868,1828.0,1827.9,14.07589604]
[1746437031531,3.92778783,1828.0,1827.9,14.07589604]
[1746437031833,0.41385783,1828.0,1827.9,14.07589604]
[1746437032130,1.50788783,1828.0,1827.9,14.07589604]
[1746437033131,1.50788783,1828.0,1827.9,17.80789604]
[1746437033325,1.50765539,1828.0,1827.9,17.80789604]
[1746437034728,1.50765539,1828.0,1827.9,26.99052141]
[1746437034926,1.09403,1828.0,1827.9,26.99052141]
[1746437035130,0.41307582,1828.0,1827.9,23.25852141]
[1746437036227,0.41307582,1828.0,1827.9,26.99052141]
[1746437036633,1.09397,1828.1,1828.0,1.09403]
[1746437036829,1.50697542,1828.1,1828.0,3.47773]
[1746437037932,0.41300542,1828.1,1828.0,3.47773]
[1746437038436,1.50721326,1828.1,1828.0,3.47773]
[1746437038633,1.50721326,1828.1,1828.0,19.97846141]
[1746437039233,1.50721326,1828.1,1828.0,23.71046141]
[1746437040134,1.50718258,1828.1,1828.0,23.71046141]
[1746437041337,1.50707198,1828.1,1828.0,23.71046141]
[1746437041639,0.41310198,1828.1,1828.0,23.71046141]
[1746437042537,1.50707198,1828.1,1828.0,23.71046141]
[1746437043338,1.50707198,1828.1,1828.0,14.52783604]
[1746437045340,2.28767198,1828.1,1828.0,12.14413604]
[1746437046240,2.28767198,1828.1,1828.0,7.31810604]
[1746437046637,3.98287198,1828.1,1828.0,7.31810604]
[1746437046829,1.09403,1828.0,1827.9,16.42390604]
[1746437047035,3.99733198,1828.0,1827.9,16.42390604]
[1746437047940,3.99733198,1828.0,1827.9,16.44239636]
[1746437048242,3.99789397,1828.0,1827.9,13.23459636]
[1746437049436,3.99789397,1828.0,1827.9,5.91649032]
[1746437050538,3.99789397,1828.0,1827.9,7.01058032]
[1746437050740,3.99789397,1828.0,1827.9,12.68158032]
[1746437050940,3.99789397,1828.0,1827.9,6.78358032]
[1746437051335,3.99794574,1828.0,1827.9,6.78358032]
[1746437052344,3.99794574,1828.0,1827.9,23.28199948]
[1746437052643,3.99794574,1828.0,1827.9,20.07419948]
[1746437052941,3.99794574,1828.0,1827.9,23.28199948]
[1746437053643,3.99750198,1828.0,1827.9,23.28199948]
[1746437054144,3.99750198,1828.0,1827.9,27.01399948]
[1746437055146,3.99750198,1828.0,1827.9,23.28199948]
[1746437055344,3.99750505,1828.0,1827.9,23.28199948]
[1746437055543,3.99750505,1828.0,1827.9,22.18790948]
[1746437055737,3.99750505,1828.0,1827.9,23.28199948]
[1746437058738,3.58423,1828.0,1827.9,6.78358032]
[1746437058937,3.99817171,1828.0,1827.9,6.78358032]
[1746437060643,3.99817171,1828.0,1827.9,14.10168636]
[1746437060644,3.99824201,1828.0,1827.9,14.10168636]
[1746437062444,3.99831221,1828.0,1827.9,14.10168636]
[1746437064143,3.99831148,1828.0,1827.9,14.10168636]
[1746437065947,3.9976768,1828.0,1827.9,14.10168636]
[1746437066844,3.9976768,1828.0,1827.9,10.89388636]
[1746437067048,3.9976768,1828.0,1827.9,14.10168636]
[1746437067746,3.99786226,1828.0,1827.9,14.10168636]
[1746437068449,3.20286226,1828.0,1827.9,14.10168636]
[1746437069456,3.20282585,1828.0,1827.9,14.10168636]
[1746437071359,3.20283601,1828.0,1827.9,14.10168636]
[1746437071862,0.41360601,1828.0,1827.9,14.10168636]
[1746437072264,0.41360601,1828.0,1827.9,17.83368636]
[1746437072961,1.09397,1828.1,1828.0,1.09403]
[1746437073263,1.50770235,1828.1,1828.0,2.69833]
[1746437073462,1.50770057,1828.1,1828.0,2.69833]
[1746437073956,1.50770057,1828.1,1828.0,2.71682032]
[1746437074158,1.50770057,1828.1,1828.0,6.44882032]
[1746437074356,1.50770057,1828.1,1828.0,32.45219004]
[1746437077165,1.50770057,1828.1,1828.0,28.72019004]
[1746437077567,1.50770057,1828.1,1828.0,31.92799004]
[1746437078162,0.41373057,1828.1,1828.0,35.65999004]
[1746437078465,1.09395,1828.2,1828.1,1.09397]
[1746437078659,1.09395,1828.2,1828.1,4.42997]
[1746437078660,1.50688146,1828.2,1828.1,4.42997]
[1746437078860,1.50688146,1828.2,1828.1,4.44846032]
[1746437080463,1.50675409,1828.2,1828.1,4.44846032]
[1746437080766,1.50675409,1828.2,1828.1,7.65626032]
[1746437082067,1.50675624,1828.2,1828.1,7.65626032]
[1746437082461,3.11595624,1828.2,1828.1,7.65626032]
[1746437083768,3.11594007,1828.2,1828.1,7.65626032]
[1746437086169,3.11594007,1828.2,1828.1,4.44846032]
[1746437086569,3.11594007,1828.2,1828.1,7.65626032]
[1746437087169,3.11594007,1828.2,1828.1,4.44846032]
[1746437087467,3.11594007,1828.2,1828.1,7.65626032]
[1746437088463,2.02199007,1828.2,1828.1,7.65626032]
[1746437088669,0.41279007,1828.2,1828.1,7.65626032]
[1746437090674,1.09386,1828.3,1828.2,1.09391]
[1746437090970,1.5061742,1828.3,1828.2,2.82040032]
[1746437092266,1.5061742,1828.3,1828.2,6.02820032]
[1746437092461,0.41235368,1828.3,1828.2,6.02820032]
[1746437093272,0.41235368,1828.3,1828.2,9.76020032]
[1746437094069,5.6391,1828.6,1828.5,1.09373]
[1746437094269,0.41288806,1828.6,1828.5,1.09373]
[1746437094473,1.50655806,1828.6,1828.5,1.09373]
[1746437094774,1.50655806,1828.6,1828.5,3.55103]
[1746437094968,1.50655806,1828.6,1828.5,3.56952032]
[1746437095168,1.50655806,1828.6,1828.5,7.30152032]
[1746437095774,1.50546619,1828.6,1828.5,7.30152032]
[1746437096075,1.50546619,1828.6,1828.5,3.56952032]
[1746437097067,0.41179619,1828.6,1828.5,7.30152032]
[1746437097473,1.50530702,1828.6,1828.5,7.30152032]
[1746437098273,1.50530702,1828.6,1828.5,3.56952032]
[1746437099175,1.50536959,1828.6,1828.5,7.30152032]
[1746437099676,0.41169959,1828.6,1828.5,7.30152032]
[1746437100876,2.67513,1828.7,1828.6,1.09367]
[1746437101073,1.9931841,1828.7,1828.6,2.69216032]
[1746437102075,1.99283526,1828.7,1828.6,2.69216032]
[1746437102974,1.99278595,1828.7,1828.6,2.69216032]
[1746437103177,3.08639595,1828.7,1828.6,2.69216032]
[1746437103769,3.08633535,1828.7,1828.6,2.69216032]
[1746437105973,1.99272535,1828.7,1828.6,2.69216032]
[1746437106178,0.41122535,1828.7,1828.6,5.89996032]
[1746437107178,1.50483535,1828.7,1828.6,5.89996032]
[1746437107386,0.41122535,1828.7,1828.6,5.89996032]
[1746437108376,1.50483535,1828.7,1828.6,5.89996032]
[1746437108574,0.41122535,1828.7,1828.6,5.89996032]
[1746437110580,2.70789,1828.8,1828.7,1.09361]
[1746437110782,3.11869582,1828.8,1828.7,3.50821]
[1746437111082,3.11869582,1828.8,1828.7,4.33070032]
[1746437111569,0.41084891,1828.8,1828.7,4.33070032]
[1746437111970,1.50439891,1828.8,1828.7,4.33070032]
[1746437112783,0.41084891,1828.8,1828.7,4.33070032]
[1746437112986,1.50439891,1828.8,1828.7,4.33070032]
[1746437113586,0.41084891,1828.8,1828.7,4.33070032]
[1746437114084,3.48754,1828.9,1828.8,1.09355]
[1746437114382,2.8045702,1828.9,1828.8,2.73595]
[1746437114578,1.9916702,1828.9,1828.8,2.73595]
[1746437114773,3.0851602,1828.9,1828.8,2.73595]
[1746437115081,1.9916702,1828.9,1828.8,2.75444032]
[1746437115784,1.99138421,1828.9,1828.8,2.75444032]
[1746437116179,1.99138421,1828.9,1828.8,6.48644032]
[1746437116979,3.08487421,1828.9,1828.8,6.48644032]
[1746437117181,3.08487421,1828.9,1828.8,2.75444032]
[1746437117182,1.99138421,1828.9,1828.8,2.75444032]
[1746437118081,3.08487421,1828.9,1828.8,2.75444032]
[1746437118286,1.99138421,1828.9,1828.8,2.75444032]
[1746437118884,3.08487421,1828.9,1828.8,2.75444032]
[1746437119082,3.08526373,1828.9,1828.8,0.01849032]
[1746437120187,6.81726373,1828.9,1828.8,0.01849032]
[1746437121182,6.81726373,1828.9,1828.8,1.11204032]
[1746437121688,6.81726373,1828.9,1828.8,0.01849032]
[1746437122488,6.81837903,1828.9,1828.8,0.01849032]
[1746437124189,6.81817326,1828.9,1828.8,0.01849032]
[1746437129289,6.40659,1828.9,1828.8,0.01849032]
[1746437129490,6.81827838,1828.9,1828.8,0.01849032]
[1746437130989,6.40659,1828.9,1828.8,0.01849032]
[1746437131197,6.81831637,1828.9,1828.8,0.01849032]
[1746437132694,6.40659,1828.9,1828.8,0.01849032]
[1746437132894,6.81833918,1828.9,1828.8,0.01849032]
[1746437133495,6.81833918,1828.9,1828.8,1.11204032]
[1746437133702,4.14374918,1828.9,1828.8,4.31984032]
[1746437134092,4.14374918,1828.9,1828.8,12.56634032]
[1746437134299,0.41174918,1828.9,1828.8,12.56634032]
[1746437134501,1.09335,1829.2,1829.1,1.09337]
[1746437135093,3.11867099,1829.2,1829.1,1.11186032]
[1746437135293,3.11867099,1829.2,1829.1,0.01849032]
[1746437136098,3.11829502,1829.2,1829.1,0.01849032]
[1746437137501,3.11843071,1829.2,1829.1,1.11186032]
[1746437137799,2.70715,1829.2,1829.1,0.01849032]
[1746437138002,3.11843079,1829.2,1829.1,0.01849032]
[1746437138607,3.11843079,1829.2,1829.1,1.11186032]
[1746437139096,3.11843079,1829.2,1829.1,0.01849032]
[1746437139302,3.11843079,1829.2,1829.1,1.11186032]
[1746437139700,3.11843079,1829.2,1829.1,0.01849032]
[1746437140096,2.70715,1829.2,1829.1,1.11186032]
[1746437140298,3.11876565,1829.2,1829.1,3.47066032]
[1746437140504,3.11876565,1829.2,1829.1,2.37729032]
[1746437140704,2.70715,1829.2,1829.1,2.37729032]
[1746437140904,3.1188361,1829.2,1829.1,2.37729032]
[1746437141294,3.11883912,1829.2,1829.1,2.37729032]
[1746437142511,3.11883912,1829.2,1829.1,3.47066032]
[1746437142708,2.70715,1829.2,1829.1,3.47066032]
[1746437142894,3.11877899,1829.2,1829.1,3.47066032]
[1746437143205,2.70715,1829.2,1829.1,3.47066032]
[1746437143404,2.70715,1829.2,1829.1,2.37729032]
[1746437143605,3.11862672,1829.2,1829.1,2.37729032]
[1746437143795,2.70715,1829.2,1829.1,2.37729032]
[1746437144103,2.70715,1829.2,1829.1,3.47066032]
[1746437144506,1.09335,1829.2,1829.1,3.47066032]
[1746437144905,1.09335,1829.2,1829.1,2.37729032]
[1746437145400,1.50472444,1829.2,1829.1,2.37729032]
[1746437146313,1.50478355,1829.2,1829.1,2.37729032]
[1746437148105,1.50477034,1829.2,1829.1,2.37729032]
[1746437148503,1.50477034,1829.2,1829.1,3.47066032]
[1746437148809,1.50473716,1829.2,1829.1,2.37729032]
[1746437149710,1.50474127,1829.2,1829.1,2.37729032]
[1746437151409,3.16001693,1829.2,1829.1,2.37729032]
[1746437152611,2.74845,1829.2,1829.1,2.37729032]
[1746437153004,1.09335,1829.2,1829.1,3.47066032]
[1746437153204,1.09335,1829.2,1829.1,2.37729032]
[1746437153711,1.09335,1829.2,1829.1,3.47066032]
[1746437153907,1.09335,1829.2,1829.1,2.37729032]
[1746437154510,1.09335,1829.2,1829.1,3.47066032]
[1746437156817,1.09335,1829.2,1829.1,2.37729032]
[1746437157913,1.09335,1829.2,1829.1,3.47066032]
[1746437158102,1.09335,1829.2,1829.1,2.37729032]
[1746437158306,2.66985,1829.2,1829.1,2.37729032]
[1746437159410,2.66985,1829.2,1829.1,3.47066032]
[1746437159915,1.09335,1829.2,1829.1,3.47066032]
[1746437160316,1.09335,1829.2,1829.1,2.37729032]
[1746437161320,3.22404282,1829.2,1829.1,2.37729032]
[1746437161620,2.81215,1829.2,1829.1,2.37729032]
[1746437163318,2.81215,1829.2,1829.1,0.01849032]
[1746437163319,11.43226776,1829.2,1829.1,0.01849032]
[1746437163617,14.89926776,1829.2,1829.1,0.01849032]
[1746437164321,18.63126776,1829.2,1829.1,0.01849032]
[1746437164521,18.63135056,1829.2,1829.1,0.01849032]
[1746437164816,13.63135056,1829.2,1829.1,0.01849032]
[1746437166220,13.63115762,1829.2,1829.1,0.01849032]
[1746437167421,18.63115762,1829.2,1829.1,0.01849032]
[1746437167721,1.09349,1828.9,1828.8,5.898]
[1746437168017,1.50569762,1828.9,1828.8,5.898]
[1746437168318,1.50569762,1828.9,1828.7,1.89261]
[1746437168319,1.09355,1828.8,1828.7,3.59281]
[1746437168519,1.50575762,1828.8,1828.7,3.59281]
[1746437169423,1.50575762,1828.8,1828.7,1.7002]
[1746437169620,2.2966851,1828.8,1828.7,1.7002]
[1746437171320,2.29595763,1828.8,1828.7,1.7002]
[1746437171822,2.29573661,1828.8,1828.7,1.7002]
[1746437174725,2.29541883,1828.8,1828.7,1.7002]
[1746437175120,1.09361,1828.7,1828.6,1.6341]
[1746437175423,3.16077883,1828.7,1828.6,3.1982]
[1746437175627,3.16077883,1828.7,1828.6,4.29187]
[1746437176428,3.16076941,1828.7,1828.6,4.29187]
[1746437177529,1.50446941,1828.7,1828.6,4.29187]
[1746437178232,1.50448648,1828.7,1828.6,4.29187]
[1746437179828,1.50440416,1828.7,1828.6,4.29187]
[1746437183119,3.21390416,1828.7,1828.6,4.29187]
[1746437185025,1.50440416,1828.7,1828.6,4.29187]
[1746437186232,0.41079416,1828.7,1828.6,4.29187]
[1746437187233,1.09356,1828.8,1828.7,1.09361]
[1746437187433,1.50470077,1828.8,1828.7,2.68111]
[1746437188037,0.41114077,1828.8,1828.7,2.68111]
[1746437188238,0.41114077,1828.8,1828.7,6.41311]
[1746437188542,1.50469077,1828.8,1828.7,6.41311]
[1746437189036,1.50468448,1828.8,1828.7,6.41311]
[1746437189239,1.50468448,1828.8,1828.7,2.68111]
[1746437189737,3.15348448,1828.8,1828.7,2.68111]
[1746437190338,3.15348448,1828.8,1828.7,2.70051335]
[1746437190836,3.15396567,1828.8,1828.7,2.70051335]
[1746437192534,3.15396567,1828.8,1828.7,2.70772197]
[1746437194142,3.15440108,1828.8,1828.7,2.70772197]
[1746437194940,3.15440108,1828.8,1828.7,1.12022197]
[1746437195652,3.15440108,1828.8,1828.7,0.02661197]
[1746437195850,3.15458971,1828.8,1828.7,0.02661197]
[1746437196043,3.15458971,1828.8,1828.7,1.12022197]
[1746437196642,3.15458971,1828.8,1828.7,0.02661197]
[1746437196846,3.15458971,1828.8,1828.7,1.12022197]
[1746437197554,3.1546515,1828.8,1828.7,1.12022197]
[1746437198157,3.1546515,1828.8,1828.7,0.02661197]
[1746437198358,3.15465185,1828.8,1828.7,0.02661197]
[1746437200960,3.15462682,1828.8,1828.7,0.02661197]
[1746437202160,6.88662682,1828.8,1828.7,0.02661197]
[1746437202854,6.88662682,1828.8,1828.7,1.12022197]
[1746437203154,3.15462682,1828.8,1828.7,2.70122197]
[1746437205264,3.15462682,1828.8,1828.7,1.60761197]
[1746437206064,3.15425576,1828.8,1828.7,1.60761197]
[1746437206359,1.0476065,1828.7,1828.6,1.6341]
[1746437206560,1.0476065,1828.7,1828.6,0.8424]
[1746437206561,4.67531226,1828.7,1828.6,0.8424]
[1746437207159,4.67531226,1828.7,1828.6,1.93607]
[1746437210366,4.67531226,1828.7,1828.6,0.8424]
[1746437210561,4.67531226,1828.7,1828.6,1.93607]
[1746437210764,4.67531226,1828.7,1828.6,0.01]
[1746437211063,8.40731226,1828.7,1828.6,0.01]
[1746437211264,8.40805877,1828.7,1828.6,0.01]
[1746437211466,8.84100149,1828.7,1828.6,0.01]
[1746437211969,8.40805877,1828.7,1828.6,0.01]
[1746437216372,8.40751121,1828.7,1828.6,0.01]
[1746437218169,8.40753063,1828.7,1828.6,0.01]
[1746437219770,8.40753723,1828.7,1828.6,0.01]
[1746437221071,8.40768291,1828.7,1828.6,0.01]
[1746437221271,11.61548291,1828.7,1828.6,0.01]
[1746437224170,11.61515553,1828.7,1828.6,0.03849769]
[1746437224968,8.40735553,1828.7,1828.6,0.03849769]
[1746437227773,8.40740599,1828.7,1828.6,0.03849769]
[1746437230972,7.9954065,1828.7,1828.6,0.03849769]
[1746437231273,8.40752352,1828.7,1828.6,0.03849769]
[1746437232068,8.40758205,1828.7,1828.6,0.03849769]
[1746437232268,7.9954065,1828.7,1828.6,0.03849769]
[1746437232976,8.40758752,1828.7,1828.6,0.03849769]
[1746437233174,8.40757566,1828.7,1828.6,0.03849769]
[1746437233873,8.40760773,1828.7,1828.6,0.03849769]
[1746437236475,8.40760773,1828.7,1828.6,0.85369769]
[1746437236675,7.9954065,1828.7,1828.6,0.85369769]
[1746437236978,8.40774007,1828.7,1828.6,0.85369769]
[1746437237675,8.40783656,1828.7,1828.6,0.85369769]
[1746437239176,8.40783656,1828.7,1828.6,0.03849769]
[1746437239377,8.40803982,1828.7,1828.6,0.03849769]
[1746437240873,8.40803982,1828.7,1828.6,0.88189769]
[1746437241175,8.40829608,1828.7,1828.6,0.88189769]
[1746437241375,7.59359608,1828.7,1828.6,0.88189769]
[1746437241776,7.59359608,1828.7,1828.6,0.9010034]
[1746437242880,7.5935592,1828.7,1828.6,0.9010034]
[1746437243074,7.5935592,1828.7,1828.6,0.90434612]
[1746437244580,7.59357264,1828.7,1828.6,0.90434612]
[1746437246277,7.1807065,1828.7,1828.6,0.90434612]
[1746437246478,7.59358124,1828.7,1828.6,0.06094612]
[1746437253185,7.59358144,1828.7,1828.6,0.06094612]
[1746437254382,11.05758144,1828.7,1828.6,0.06094612]
[1746437254878,10.6447065,1828.7,1828.6,0.06094612]
[1746437255077,11.05744061,1828.7,1828.6,0.06094612]
[1746437256690,11.05731,1828.7,1828.6,0.06094612]
[1746437258386,14.26511,1828.7,1828.6,0.08009399]
[1746437259984,13.8525065,1828.7,1828.6,0.08009399]
[1746437260287,14.26517103,1828.7,1828.6,0.08009399]
[1746437263487,14.26519083,1828.7,1828.6,0.08009399]
[1746437263686,14.26519022,1828.7,1828.6,0.08009399]
[1746437263890,2.7342,1828.6,1828.3,8.10903981]
[1746437264083,1.09379,1828.4,1828.3,8.10903981]
[1746437264390,4.96847372,1828.4,1828.3,7.31513981]
[1746437264589,8.19877372,1828.4,1828.3,7.31513981]
[1746437265189,11.93077372,1828.4,1828.3,7.31513981]
[1746437265391,11.93077372,1828.4,1828.3,8.87673981]
[1746437265989,11.93099661,1828.4,1828.3,8.87673981]
[1746437266895,11.9310711,1828.4,1828.3,8.87673981]
[1746437267390,11.1253711,1828.4,1828.3,8.87673981]
[1746437267790,11.1253711,1828.4,1828.3,1.5616]
[1746437268592,8.7007711,1828.4,1828.3,1.5616]
[1746437269193,4.9687711,1828.4,1828.3,1.5616]
[1746437270482,4.96835292,1828.4,1828.3,1.5616]
[1746437273996,4.96850735,1828.4,1828.3,1.5616]
[1746437275494,4.9684377,1828.4,1828.3,1.5616]
[1746437277294,4.9683781,1828.4,1828.3,1.5616]
[1746437279094,4.96795912,1828.4,1828.3,1.5616]
[1746437279300,4.96795912,1828.4,1828.3,1.58096051]
[1746437280299,6.60325912,1828.4,1828.3,1.58096051]
[1746437280507,6.60325912,1828.4,1828.3,1.60010402]
[1746437283613,6.60330061,1828.4,1828.3,1.60010402]
[1746437285317,6.60324746,1828.4,1828.3,1.60010402]
[1746437285620,6.56474344,1828.4,1828.3,1.5616]
[1746437292320,6.5650525,1828.4,1828.3,1.5616]
[1746437293021,6.56517432,1828.4,1828.3,1.5616]
[1746437293823,6.56542421,1828.4,1828.3,1.5616]
[1746437294523,6.96378598,1828.4,1828.3,1.5616]
[1746437294920,7.37663035,1828.4,1828.3,1.5616]
[1746437295923,7.37667029,1828.4,1828.3,1.5616]
[1746437297622,7.37662128,1828.4,1828.3,1.5616]
[1746437299924,4.93012128,1828.4,1828.3,1.5616]
[1746437301118,4.92942119,1828.4,1828.3,1.5616]
[1746437302126,4.92942119,1828.4,1828.3,5.2936]
[1746437302527,4.92942119,1828.4,1828.3,6.38745]
[1746437302825,4.92942119,1828.4,1828.3,5.2936]
[1746437304129,4.92942119,1828.4,1828.3,1.5616]
[1746437306426,4.92850202,1828.4,1828.3,1.5616]
[1746437307924,4.51728598,1828.4,1828.3,1.5616]
[1746437308127,4.92851294,1828.4,1828.3,1.5616]
[1746437309030,1.09385,1828.3,1828.2,11.37753981]
[1746437309223,3.06957696,1828.3,1828.2,11.37753981]